Workbook

Sheet Placer des nombres entiers
DC1: nombre de départ : | DO1: =RANDBETWEEN(DV2,DV3) -> 3 | DT1: A | DU1: 10 | DV1: 10 | DW1: 10
B2: A | Q2: =IF(DO1<(DO2*2),(2*DO2)+DO1,DO1) -> 23 | AA2: =Q2+DO2 -> 33 | DC2: incrément : | DO2: =INDEX(liste1,1,INT(RAND()*(4-1)+1)) -> 10 | DP2: =INDEX(liste,1,INT(RAND()*(4-1)+1)) ->  | DQ2: =INDEX(liste,1,INT(RAND()*(4-1)+1)) ->  | DT2: borne inf. : | DV2: 1
DT3: borne sup. : | DV3: 5
CZ5: Seules les cellules jaunes et vertes sont modifiables. Recréez un exercice avec la touche F9 du clavier.
CZ8: Les trois valeurs contenues dans chaque liste peuvent être identiques ou différentes : un tirage au sort se fera parmi les valeurs de ces 3 cellules pour déterminer l'incrément qui sera utilisé pour la série. Donc si vous voulez utiliser impérativement un incrément mettez 3 valeurs identiques.
B9: =Q2-(2*DO2)+2*(DO2/10) -> 5 | M9: =Q2-5*(DO2/10) -> 18 | V9: =Q2+4*(DO2/10) -> 27 | AE9: =Q2+DO2+3*(DO2/10) -> 36 | AO9: =AE9+DO2 -> 46 | AX9: =AO9+DO2-(DO2/10) -> 55 | BM9: =AX9+DO2+5*(DO2/10) -> 70 | BY9: =BM9+DO2+2*(DO2/10) -> 82 | CH9: =BY9+DO2-(DO2/10) -> 91 | CS9: =Q2+(8*DO2) -> 103
DC13: nombre de départ : | DO13: =RANDBETWEEN(DV14,DV15) -> 10 | DT13: B | DU13: 10 | DV13: 10 | DW13: 10
B14: B | AK14: =IF($DO13<($DO14*4),($DO14*4)+$DO13,$DO13) -> 50 | AU14: =AK14+DO14 -> 60 | DC14: incrément : | DO14: =INDEX(liste1a,1,INT(RAND()*(4-1)+1)) -> 10 | DP14: =INDEX(liste,1,INT(RAND()*(4-1)+1)) ->  | DQ14: =INDEX(liste,1,INT(RAND()*(4-1)+1)) ->  | DT14: borne inf. : | DV14: 5
DT15: borne sup. : | DV15: 10
CZ20: Les valeurs des bornes déterminent le nombre de départ. Veillez à ce que la borne inférieure soit plus petite que la borne supérireure ! Sinon il y aura une erreur…
B21: =AK14-(4*DO14)+2*(DO14/10) -> 12 | I21: =B21+7*(DO14/10) -> 19 | S21: =I21+DO14+2*(DO14/10) -> 31 | AB21: =AK14-DO14 -> 40 | AK21: =AK14-(DO14/10) -> 49 | AU21: =AU14-(DO14/10) -> 59 | BD21: =AU14+8*(DO14/10) -> 68 | BS21: =AU14+2*DO14+3*(DO14/10) -> 83 | CE21: =AU14+3*DO14+5*(DO14/10) -> 95 | CN21: =AU14+4*DO14+4*(DO14/10) -> 104
DC25: nombre de départ : | DO25: =RANDBETWEEN(DV26,DV27) -> 2 | DT25: C | DU25: 100 | DV25: 100 | DW25: 100
B26: C | BO26: =IF($DO25<($DO26*7),($DO26*7)+$DO25,$DO25) -> 702 | BY26: =BO26+DO26 -> 802 | DC26: incrément : | DO26: =INDEX(liste1b,1,INT(RAND()*(4-1)+1)) -> 100 | DP26: =INDEX(liste,1,INT(RAND()*(4-1)+1)) ->  | DQ26: =INDEX(liste,1,INT(RAND()*(4-1)+1)) ->  | DT26: borne inf. : | DV26: 2
DT27: borne sup. : | DV27: 4
DB32: Ordre sur les nombres entiers naturels
C33: =BO26-7*DO26+5*(DO26/10) -> 52 | J33: =BO26-6*DO26+2*(DO26/10) -> 122 | U33: =BO26-5*DO26+3*(DO26/10) -> 232 | AD33: =BO26-4*DO26+2*(DO26/10) -> 322 | AM33: =BO26-3*DO26+1*(DO26/10) -> 412 | AW33: =BO26-2*DO26+1*(DO26/10) -> 512 | BF33: =BO26-DO26 -> 602 | BU33: =BO26+5*(DO26/10) -> 752 | CG33: =BY26+7*(DO26/10) -> 872 | CP33: =CG33+9*(DO26/10) -> 962 | DB33: Situer précisément ou approximativement des nombres sur une droite graduée de 10 en 10, de 100 en 100…
DC37: nombre de départ : | DO37: =RANDBETWEEN(DV38,DV39) -> 7 | DT37: D | DU37: 1000 | DV37: 1000 | DW37: 1000
B38: D | AU38: =IF($DO37<($DO38*5),($DO38*5)+$DO37,$DO37) -> 5007 | BE38: =AU38+DO38 -> 6007 | DC38: incrément : | DO38: =INDEX(liste1c,1,INT(RAND()*(4-1)+1)) -> 1000 | DP38: =INDEX(liste,1,INT(RAND()*(4-1)+1)) ->  | DQ38: =INDEX(liste,1,INT(RAND()*(4-1)+1)) ->  | DT38: borne inf. : | DV38: 7
DT39: borne sup. : | DV39: 9
D45: =AU38-(5*DO38)+6*(DO38/10) -> 607 | K45: =AU38-(4*DO38)+3*(DO38/10) -> 1307 | V45: =AU38-(3*DO38)+4*(DO38/10) -> 2407 | AE45: =AU38-(2*DO38)+3*(DO38/10) -> 3307 | AN45: =AU38-(1*DO38)+2*(DO38/10) -> 4207 | AX45: =AU38+2*(DO38/10) -> 5207 | BG45: =BE38+(DO38/10) -> 6107 | BV45: =BE38+(1*DO38)+6*(DO38/10) -> 7607 | CH45: =BE38+(2*DO38)+8*(DO38/10) -> 8807 | CS45: =BE38+(3*DO38)+9*(DO38/10) -> 9907
DC49: nombre de départ : | DO49: =RANDBETWEEN($DV$50,$DV$51) -> 11 | DT49: E | DU49: 10000 | DV49: 10000 | DW49: 10000
B50: E | Q50: =IF($DO49<($DO50*2),($DO50*2)+$DO49,$DO49) -> 20011 | AA50: =Q50+DO50 -> 30011 | DC50: incrément : | DO50: =INDEX(liste2,1,INT(RAND()*(4-1)+1)) -> 10000 | DP50: =INDEX(liste,1,INT(RAND()*(4-1)+1)) ->  | DQ50: =INDEX(liste,1,INT(RAND()*(4-1)+1)) ->  | DT50: borne inf. : | DV50: 10
DT51: borne sup. : | DV51: 15
J57: =Q50-(1*DO50)+2*(DO50/10) -> 12011 | Q57: =Q50-(DO50/10) -> 19011 | AB57: =AA50 -> 30011 | AK57: =AA50+9*(DO50/10) -> 39011 | AT57: =AA50+(1*DO50)+8*(DO50/10) -> 48011 | BD57: =AA50+(2*DO50)+8*(DO50/10) -> 58011 | BM57: =AA50+(3*DO50)+7*(DO50/10) -> 67011 | BT57: =AA50+(4*DO50)+4*(DO50/10) -> 74011 | CF57: =AA50+(5*DO50)+6*(DO50/10) -> 86011 | CQ57: =AA50+(6*DO50)+7*(DO50/10) -> 97011
CH59: =CH1 -> 0
B60: =B2 -> A | Q60: 23 | R60: 0 | S60: 0 | T60: 0 | U60: 0 | V60: 0 | W60: 0 | X60: 0 | AA60: 33 | AB60: 0 | AC60: 0 | AD60: 0 | AE60: 0 | AF60: 0 | AG60: =AG2 -> 0 | AH60: 0
B67: =B9 -> 5 | C67: 0 | D67: 0 | E67: 0 | F67: 0 | G67: 0 | M67: 18 | N67: 0 | O67: 0 | P67: 0 | Q67: 0 | R67: 0 | V67: 27 | W67: 0 | X67: 0 | Y67: 0 | Z67: 0 | AA67: 0 | AE67: 36 | AF67: 0 | AG67: =AG9 -> 0 | AH67: 0 | AI67: 0 | AJ67: 0 | AO67: 46 | AP67: 0 | AQ67: 0 | AR67: 0 | AS67: 0 | AT67: 0 | AX67: 55 | AY67: 0 | AZ67: 0 | BA67: 0 | BB67: 0 | BC67: 0 | BM67: =BM9 -> 70 | BN67: 0 | BO67: 0 | BP67: 0 | BQ67: 0 | BR67: 0 | BY67: 82 | BZ67: 0 | CA67: 0 | CB67: 0 | CC67: 0 | CD67: 0 | CH67: 91 | CI67: 0 | CJ67: 0 | CK67: 0 | CL67: 0 | CM67: 0 | CS67: =CS9 -> 103 | CT67: 0 | CU67: 0 | CV67: 0 | CW67: 0 | CX67: 0
B68: =B10 -> 0 | C68: 0 | D68: 0 | E68: 0 | F68: 0 | G68: 0 | M68: 0 | N68: 0 | O68: 0 | P68: 0 | Q68: 0 | R68: 0 | V68: 0 | W68: 0 | X68: 0 | Y68: 0 | Z68: 0 | AA68: 0 | AE68: 0 | AF68: 0 | AG68: =AG10 -> 0 | AH68: 0 | AI68: 0 | AJ68: 0 | AO68: 0 | AP68: 0 | AQ68: 0 | AR68: 0 | AS68: 0 | AT68: 0 | AX68: 0 | AY68: 0 | AZ68: 0 | BA68: 0 | BB68: 0 | BC68: 0 | BM68: =BM10 -> 0 | BN68: 0 | BO68: 0 | BP68: 0 | BQ68: 0 | BR68: 0 | BY68: 0 | BZ68: 0 | CA68: 0 | CB68: 0 | CC68: 0 | CD68: 0 | CH68: 0 | CI68: 0 | CJ68: 0 | CK68: 0 | CL68: 0 | CM68: 0 | CS68: =CS10 -> 0 | CT68: 0 | CU68: 0 | CV68: 0 | CW68: 0 | CX68: 0
B72: =B14 -> B | AK72: =AK14 -> 50 | AL72: 0 | AM72: 0 | AN72: 0 | AO72: 0 | AP72: 0 | AQ72: 0 | AR72: 0 | AU72: 60 | AV72: 0 | AW72: 0 | AX72: 0 | AY72: 0 | AZ72: 0 | BA72: 0 | BB72: 0
B79: =B21 -> 12 | C79: 0 | D79: 0 | E79: 0 | F79: 0 | G79: 0 | I79: 19 | J79: 0 | K79: 0 | L79: 0 | M79: 0 | N79: 0 | S79: 31 | T79: 0 | U79: 0 | V79: 0 | W79: 0 | X79: 0 | AB79: 40 | AC79: 0 | AD79: 0 | AE79: 0 | AF79: 0 | AG79: =AG21 -> 0 | AK79: 49 | AL79: 0 | AM79: 0 | AN79: 0 | AO79: 0 | AP79: 0 | AU79: 59 | AV79: 0 | AW79: 0 | AX79: 0 | AY79: 0 | AZ79: 0 | BD79: 68 | BE79: 0 | BF79: 0 | BG79: 0 | BH79: 0 | BI79: 0 | BS79: =BS21 -> 83 | BT79: 0 | BU79: 0 | BV79: 0 | BW79: 0 | BX79: 0 | CE79: 95 | CF79: 0 | CG79: 0 | CH79: 0 | CI79: 0 | CJ79: 0 | CN79: 104 | CO79: 0 | CP79: 0 | CQ79: 0 | CR79: 0 | CS79: =CS21 -> 0
B80: =B22 -> 0 | C80: 0 | D80: 0 | E80: 0 | F80: 0 | G80: 0 | I80: 0 | J80: 0 | K80: 0 | L80: 0 | M80: 0 | N80: 0 | S80: 0 | T80: 0 | U80: 0 | V80: 0 | W80: 0 | X80: 0 | AB80: 0 | AC80: 0 | AD80: 0 | AE80: 0 | AF80: 0 | AG80: =AG22 -> 0 | AK80: 0 | AL80: 0 | AM80: 0 | AN80: 0 | AO80: 0 | AP80: 0 | AU80: 0 | AV80: 0 | AW80: 0 | AX80: 0 | AY80: 0 | AZ80: 0 | BD80: 0 | BE80: 0 | BF80: 0 | BG80: 0 | BH80: 0 | BI80: 0 | BS80: =BS22 -> 0 | BT80: 0 | BU80: 0 | BV80: 0 | BW80: 0 | BX80: 0 | CE80: 0 | CF80: 0 | CG80: 0 | CH80: 0 | CI80: 0 | CJ80: 0 | CN80: 0 | CO80: 0 | CP80: 0 | CQ80: 0 | CR80: 0 | CS80: =CS22 -> 0
B84: =B26 -> C | BO84: =BO26 -> 702 | BP84: 0 | BQ84: 0 | BR84: 0 | BS84: 0 | BT84: 0 | BU84: 0 | BV84: 0 | BY84: 802 | BZ84: 0 | CA84: 0 | CB84: 0 | CC84: 0 | CD84: 0 | CE84: 0 | CF84: 0
C91: =C33 -> 52 | D91: 0 | E91: 0 | F91: 0 | G91: 0 | H91: 0 | J91: 122 | K91: 0 | L91: 0 | M91: 0 | N91: 0 | O91: 0 | U91: 232 | V91: 0 | W91: 0 | X91: 0 | Y91: 0 | Z91: 0 | AD91: 322 | AE91: 0 | AF91: 0 | AG91: =AG33 -> 0 | AH91: 0 | AI91: 0 | AM91: 412 | AN91: 0 | AO91: 0 | AP91: 0 | AQ91: 0 | AR91: 0 | AW91: 512 | AX91: 0 | AY91: 0 | AZ91: 0 | BA91: 0 | BB91: 0 | BF91: 602 | BG91: 0 | BH91: 0 | BI91: 0 | BJ91: 0 | BK91: 0 | BU91: =BU33 -> 752 | BV91: 0 | BW91: 0 | BX91: 0 | BY91: 0 | BZ91: 0 | CG91: 872 | CH91: 0 | CI91: 0 | CJ91: 0 | CK91: 0 | CL91: 0 | CP91: 962 | CQ91: 0 | CR91: 0 | CS91: =CS33 -> 0 | CT91: 0 | CU91: 0
C92: =C34 -> 0 | D92: 0 | E92: 0 | F92: 0 | G92: 0 | H92: 0 | J92: 0 | K92: 0 | L92: 0 | M92: 0 | N92: 0 | O92: 0 | U92: 0 | V92: 0 | W92: 0 | X92: 0 | Y92: 0 | Z92: 0 | AD92: 0 | AE92: 0 | AF92: 0 | AG92: =AG34 -> 0 | AH92: 0 | AI92: 0 | AM92: 0 | AN92: 0 | AO92: 0 | AP92: 0 | AQ92: 0 | AR92: 0 | AW92: 0 | AX92: 0 | AY92: 0 | AZ92: 0 | BA92: 0 | BB92: 0 | BF92: 0 | BG92: 0 | BH92: 0 | BI92: 0 | BJ92: 0 | BK92: 0 | BU92: =BU34 -> 0 | BV92: 0 | BW92: 0 | BX92: 0 | BY92: 0 | BZ92: 0 | CG92: 0 | CH92: 0 | CI92: 0 | CJ92: 0 | CK92: 0 | CL92: 0 | CP92: 0 | CQ92: 0 | CR92: 0 | CS92: =CS34 -> 0 | CT92: 0 | CU92: 0
B96: =B38 -> D | AU96: =AU38 -> 5007 | AV96: 0 | AW96: 0 | AX96: 0 | AY96: 0 | AZ96: 0 | BA96: 0 | BB96: 0 | BE96: 6007 | BF96: 0 | BG96: 0 | BH96: 0 | BI96: 0 | BJ96: 0 | BK96: 0 | BL96: 0
D103: =D45 -> 607 | E103: 0 | F103: 0 | G103: 0 | H103: 0 | I103: 0 | K103: 1307 | L103: 0 | M103: 0 | N103: 0 | O103: 0 | P103: 0 | V103: 2407 | W103: 0 | X103: 0 | Y103: 0 | Z103: 0 | AA103: 0 | AE103: 3307 | AF103: 0 | AG103: =AG45 -> 0 | AH103: 0 | AI103: 0 | AJ103: 0 | AN103: 4207 | AO103: 0 | AP103: 0 | AQ103: 0 | AR103: 0 | AS103: 0 | AX103: 5207 | AY103: 0 | AZ103: 0 | BA103: 0 | BB103: 0 | BC103: 0 | BG103: 6107 | BH103: 0 | BI103: 0 | BJ103: 0 | BK103: 0 | BL103: 0 | BV103: =BV45 -> 7607 | BW103: 0 | BX103: 0 | BY103: 0 | BZ103: 0 | CA103: 0 | CH103: 8807 | CI103: 0 | CJ103: 0 | CK103: 0 | CL103: 0 | CM103: 0 | CS103: =CS45 -> 9907 | CT103: 0 | CU103: 0 | CV103: 0 | CW103: 0 | CX103: 0
D104: =D46 -> 0 | E104: 0 | F104: 0 | G104: 0 | H104: 0 | I104: 0 | K104: 0 | L104: 0 | M104: 0 | N104: 0 | O104: 0 | P104: 0 | V104: 0 | W104: 0 | X104: 0 | Y104: 0 | Z104: 0 | AA104: 0 | AE104: 0 | AF104: 0 | AG104: =AG46 -> 0 | AH104: 0 | AI104: 0 | AJ104: 0 | AN104: 0 | AO104: 0 | AP104: 0 | AQ104: 0 | AR104: 0 | AS104: 0 | AX104: 0 | AY104: 0 | AZ104: 0 | BA104: 0 | BB104: 0 | BC104: 0 | BG104: 0 | BH104: 0 | BI104: 0 | BJ104: 0 | BK104: 0 | BL104: 0 | BV104: =BV46 -> 0 | BW104: 0 | BX104: 0 | BY104: 0 | BZ104: 0 | CA104: 0 | CH104: 0 | CI104: 0 | CJ104: 0 | CK104: 0 | CL104: 0 | CM104: 0 | CS104: =CS46 -> 0 | CT104: 0 | CU104: 0 | CV104: 0 | CW104: 0 | CX104: 0
B108: =B50 -> E | Q108: =Q50 -> 20011 | R108: 0 | S108: 0 | T108: 0 | U108: 0 | V108: 0 | W108: 0 | X108: 0 | AA108: 30011 | AB108: 0 | AC108: 0 | AD108: 0 | AE108: 0 | AF108: 0 | AG108: =AG50 -> 0 | AH108: 0
J115: =J57 -> 12011 | K115: 0 | L115: 0 | M115: 0 | N115: 0 | O115: 0 | Q115: 19011 | R115: 0 | S115: 0 | T115: 0 | U115: 0 | V115: 0 | AB115: 30011 | AC115: 0 | AD115: 0 | AE115: 0 | AF115: 0 | AG115: =AG57 -> 0 | AK115: 39011 | AL115: 0 | AM115: 0 | AN115: 0 | AO115: 0 | AP115: 0 | AT115: 48011 | AU115: 0 | AV115: 0 | AW115: 0 | AX115: 0 | AY115: 0 | BD115: 58011 | BE115: 0 | BF115: 0 | BG115: 0 | BH115: 0 | BI115: 0 | BM115: =BM57 -> 67011 | BN115: 0 | BO115: 0 | BP115: 0 | BQ115: 0 | BR115: 0 | BT115: 74011 | BU115: 0 | BV115: 0 | BW115: 0 | BX115: 0 | BY115: 0 | CF115: 86011 | CG115: 0 | CH115: 0 | CI115: 0 | CJ115: 0 | CK115: 0 | CQ115: 97011 | CR115: 0 | CS115: =CS57 -> 0 | CT115: 0 | CU115: 0 | CV115: 0
J116: =J58 -> 0 | K116: 0 | L116: 0 | M116: 0 | N116: 0 | O116: 0 | Q116: 0 | R116: 0 | S116: 0 | T116: 0 | U116: 0 | V116: 0 | AB116: 0 | AC116: 0 | AD116: 0 | AE116: 0 | AF116: 0 | AG116: =AG58 -> 0 | AK116: 0 | AL116: 0 | AM116: 0 | AN116: 0 | AO116: 0 | AP116: 0 | AT116: 0 | AU116: 0 | AV116: 0 | AW116: 0 | AX116: 0 | AY116: 0 | BD116: 0 | BE116: 0 | BF116: 0 | BG116: 0 | BH116: 0 | BI116: 0 | BM116: =BM58 -> 0 | BN116: 0 | BO116: 0 | BP116: 0 | BQ116: 0 | BR116: 0 | BT116: 0 | BU116: 0 | BV116: 0 | BW116: 0 | BX116: 0 | BY116: 0 | CF116: 0 | CG116: 0 | CH116: 0 | CI116: 0 | CJ116: 0 | CK116: 0 | CQ116: 0 | CR116: 0 | CS116: =CS58 -> 0 | CT116: 0 | CU116: 0 | CV116: 0

Sheet Placer des nombres décimaux
CH1: =CONCATENATE("Fiche : ",RANDBETWEEN(1,1000)) -> Fiche : 817 | DA1: a | DC1: nombre de départ : | DO1: =RANDBETWEEN(DV2,DV3) -> 3 | DT1: liste1 : | DU1: 1 | DV1: 1 | DW1: 1
B2: A | Q2: =IF(DO1<(DO2*2),(2*DO2)+DO1,DO1) -> 3 | AA2: =Q2+DO2 -> 4 | DC2: incrément : | DO2: =INDEX(liste1,1,INT(RAND()*(4-1)+1)) -> 1 | DP2: =INDEX(liste,1,INT(RAND()*(4-1)+1)) ->  | DQ2: =INDEX(liste,1,INT(RAND()*(4-1)+1)) ->  | DT2: borne inf. : | DV2: 1
DT3: borne sup. : | DV3: 5
CZ5: Seules les cellules jaunes et vertes sont modifiables. Recréez un exercice avec la touche F9 du clavier.
CZ8: Les trois valeurs contenues dans chaque liste peuvent être identiques ou différentes : un tirage au sort se fera parmi les valeurs de ces 3 cellules pour déterminer l'incrément qui sera utilisé pour la série. Donc si vous voulez utiliser impérativement un incrément mettez 3 valeurs identiques. Ici les cellules sont verrouillées.
B9: =Q2-(2*DO2)+2*(DO2/10) -> 1.2 | M9: =Q2-5*(DO2/10) -> 2.5 | V9: =Q2+4*(DO2/10) -> 3.4 | AE9: =Q2+DO2+3*(DO2/10) -> 4.3 | AO9: =AE9+DO2 -> 5.3 | AX9: =AO9+DO2-(DO2/10) -> 6.2 | BM9: =AX9+DO2+5*(DO2/10) -> 7.7 | BY9: =BM9+DO2+2*(DO2/10) -> 8.9 | CH9: =BY9+DO2-(DO2/10) -> 9.8 | CS9: =Q2+(8*DO2) -> 11
DA13: b | DC13: nombre de départ : | DO13: =RANDBETWEEN(DV14,DV15) -> 6 | DT13: liste1a : | DU13: 1 | DV13: 1 | DW13: 1
B14: B | AK14: =IF($DO13<($DO14*4),($DO14*4)+$DO13,$DO13) -> 6 | AU14: =AK14+DO14 -> 7 | DC14: incrément : | DO14: =INDEX(liste1a,1,INT(RAND()*(4-1)+1)) -> 1 | DP14: =INDEX(liste,1,INT(RAND()*(4-1)+1)) ->  | DQ14: =INDEX(liste,1,INT(RAND()*(4-1)+1)) ->  | DT14: borne inf. : | DV14: 5
DT15: borne sup. : | DV15: 10
CZ20: Les valeurs des bornes déterminent le nombre de départ. Veillez à ce que la borne inférieure soit plus petite que la borne supérireure ! Sinon il y aura une erreur…
B21: =AK14-(4*DO14)+2*(DO14/10) -> 2.2 | I21: =B21+7*(DO14/10) -> 2.9 | S21: =I21+DO14+2*(DO14/10) -> 4.1 | AB21: =AK14-DO14 -> 5 | AK21: =AK14-(DO14/10) -> 5.9 | AU21: =AU14-(DO14/10) -> 6.9 | BD21: =AU14+8*(DO14/10) -> 7.8 | BS21: =AU14+2*DO14+3*(DO14/10) -> 9.3 | CE21: =AU14+3*DO14+5*(DO14/10) -> 10.5 | CN21: =AU14+4*DO14+4*(DO14/10) -> 11.4
DA25: c | DC25: nombre de départ : | DO25: =RANDBETWEEN(DV26,DV27) -> 3 | DT25: liste1b : | DU25: 0.1 | DV25: 0.1 | DW25: 0.1
B26: C | BO26: =IF($DO25<($DO26*7),($DO26*7)+$DO25,$DO25) -> 3 | BY26: =BO26+DO26 -> 3.1 | DC26: incrément : | DO26: =INDEX(liste1b,1,INT(RAND()*(4-1)+1)) -> 0.1 | DP26: =INDEX(liste,1,INT(RAND()*(4-1)+1)) ->  | DQ26: =INDEX(liste,1,INT(RAND()*(4-1)+1)) ->  | DT26: borne inf. : | DV26: 2
DT27: borne sup. : | DV27: 4
C33: =BO26-7*DO26+5*(DO26/10) -> 2.35 | J33: =BO26-6*DO26+2*(DO26/10) -> 2.42 | U33: =BO26-5*DO26+3*(DO26/10) -> 2.53 | AD33: =BO26-4*DO26+2*(DO26/10) -> 2.62 | AM33: =BO26-3*DO26+1*(DO26/10) -> 2.71 | AW33: =BO26-2*DO26+1*(DO26/10) -> 2.81 | BF33: =BO26-DO26 -> 2.9 | BU33: =BO26+5*(DO26/10) -> 3.05 | CG33: =BY26+7*(DO26/10) -> 3.17 | CP33: =CG33+9*(DO26/10) -> 3.26
DA37: d | DC37: nombre de départ : | DO37: =RANDBETWEEN(DV38,DV39) -> 7 | DT37: liste1c : | DU37: 0.1 | DV37: 0.1 | DW37: 0.1
B38: D | AU38: =IF($DO37<($DO38*5),($DO38*5)+$DO37,$DO37) -> 7 | BE38: =AU38+DO38 -> 7.1 | DC38: incrément : | DO38: =INDEX(liste1c,1,INT(RAND()*(4-1)+1)) -> 0.1 | DP38: =INDEX(liste,1,INT(RAND()*(4-1)+1)) ->  | DQ38: =INDEX(liste,1,INT(RAND()*(4-1)+1)) ->  | DT38: borne inf. : | DV38: 7
DT39: borne sup. : | DV39: 9
D45: =AU38-(5*DO38)+6*(DO38/10) -> 6.56 | K45: =AU38-(4*DO38)+3*(DO38/10) -> 6.63 | V45: =AU38-(3*DO38)+4*(DO38/10) -> 6.74 | AE45: =AU38-(2*DO38)+3*(DO38/10) -> 6.83 | AN45: =AU38-(1*DO38)+2*(DO38/10) -> 6.92 | AX45: =AU38+2*(DO38/10) -> 7.02 | BG45: =BE38+(DO38/10) -> 7.11 | BV45: =BE38+(1*DO38)+6*(DO38/10) -> 7.26 | CH45: =BE38+(2*DO38)+8*(DO38/10) -> 7.38 | CS45: =BE38+(3*DO38)+9*(DO38/10) -> 7.49
DA49: e | DC49: nombre de départ : | DO49: =RANDBETWEEN($DV$50,$DV$51) -> 15 | DT49: liste2 : | DU49: 0.01 | DV49: 0.01 | DW49: 0.01
B50: E | Q50: =IF($DO49<($DO50*2),($DO50*2)+$DO49,$DO49) -> 15 | AA50: =Q50+DO50 -> 15.01 | DC50: incrément : | DO50: =INDEX(liste2,1,INT(RAND()*(4-1)+1)) -> 0.01 | DP50: =INDEX(liste,1,INT(RAND()*(4-1)+1)) ->  | DQ50: =INDEX(liste,1,INT(RAND()*(4-1)+1)) ->  | DT50: borne inf. : | DV50: 10
DT51: borne sup. : | DV51: 15
J57: =Q50-(1*DO50)+2*(DO50/10) -> 14.992 | Q57: =Q50-(DO50/10) -> 14.999 | AB57: =AA50 -> 15.01 | AK57: =AA50+9*(DO50/10) -> 15.019 | AT57: =AA50+(1*DO50)+8*(DO50/10) -> 15.028 | BD57: =AA50+(2*DO50)+8*(DO50/10) -> 15.038 | BM57: =AA50+(3*DO50)+7*(DO50/10) -> 15.047 | BT57: =AA50+(4*DO50)+4*(DO50/10) -> 15.054 | CF57: =AA50+(5*DO50)+6*(DO50/10) -> 15.066 | CQ57: =AA50+(6*DO50)+7*(DO50/10) -> 15.077
CH59: =CH1 -> Fiche : 817
B60: =B2 -> A | Q60: 3 | R60: 0 | S60: 0 | T60: 0 | U60: 0 | V60: 0 | W60: 0 | X60: 0 | AA60: 4 | AB60: 0 | AC60: 0 | AD60: 0 | AE60: 0 | AF60: 0 | AG60: 0 | AH60: 0
B67: =B9 -> 1.2 | C67: 0 | D67: 0 | E67: 0 | F67: 0 | G67: 0 | M67: 2.5 | N67: 0 | O67: 0 | P67: 0 | Q67: 0 | R67: 0 | V67: 3.4 | W67: 0 | X67: 0 | Y67: 0 | Z67: 0 | AA67: 0 | AE67: 4.3 | AF67: 0 | AG67: 0 | AH67: 0 | AI67: 0 | AJ67: 0 | AO67: 5.3 | AP67: 0 | AQ67: 0 | AR67: 0 | AS67: 0 | AT67: 0 | AX67: 6.2 | AY67: 0 | AZ67: 0 | BA67: 0 | BB67: 0 | BC67: 0 | BM67: =BM9 -> 7.7 | BN67: 0 | BO67: 0 | BP67: 0 | BQ67: 0 | BR67: 0 | BY67: 8.9 | BZ67: 0 | CA67: 0 | CB67: 0 | CC67: 0 | CD67: 0 | CH67: 9.8 | CI67: 0 | CJ67: 0 | CK67: 0 | CL67: 0 | CM67: 0 | CS67: =CS9 -> 11 | CT67: 0 | CU67: 0 | CV67: 0 | CW67: 0 | CX67: 0
B68: 0 | C68: 0 | D68: 0 | E68: 0 | F68: 0 | G68: 0 | M68: 0 | N68: 0 | O68: 0 | P68: 0 | Q68: 0 | R68: 0 | V68: 0 | W68: 0 | X68: 0 | Y68: 0 | Z68: 0 | AA68: 0 | AE68: 0 | AF68: 0 | AG68: 0 | AH68: 0 | AI68: 0 | AJ68: 0 | AO68: 0 | AP68: 0 | AQ68: 0 | AR68: 0 | AS68: 0 | AT68: 0 | AX68: 0 | AY68: 0 | AZ68: 0 | BA68: 0 | BB68: 0 | BC68: 0 | BM68: 0 | BN68: 0 | BO68: 0 | BP68: 0 | BQ68: 0 | BR68: 0 | BY68: 0 | BZ68: 0 | CA68: 0 | CB68: 0 | CC68: 0 | CD68: 0 | CH68: 0 | CI68: 0 | CJ68: 0 | CK68: 0 | CL68: 0 | CM68: 0 | CS68: 0 | CT68: 0 | CU68: 0 | CV68: 0 | CW68: 0 | CX68: 0
B72: =B14 -> B | AK72: =AK14 -> 6 | AL72: 0 | AM72: 0 | AN72: 0 | AO72: 0 | AP72: 0 | AQ72: 0 | AR72: 0 | AU72: 7 | AV72: 0 | AW72: 0 | AX72: 0 | AY72: 0 | AZ72: 0 | BA72: 0 | BB72: 0
B79: =B21 -> 2.2 | C79: 0 | D79: 0 | E79: 0 | F79: 0 | G79: 0 | I79: 2.9 | J79: 0 | K79: 0 | L79: 0 | M79: 0 | N79: 0 | S79: 4.1 | T79: 0 | U79: 0 | V79: 0 | W79: 0 | X79: 0 | AB79: 5 | AC79: 0 | AD79: 0 | AE79: 0 | AF79: 0 | AG79: 0 | AK79: 5.9 | AL79: 0 | AM79: 0 | AN79: 0 | AO79: 0 | AP79: 0 | AU79: 6.9 | AV79: 0 | AW79: 0 | AX79: 0 | AY79: 0 | AZ79: 0 | BD79: 7.8 | BE79: 0 | BF79: 0 | BG79: 0 | BH79: 0 | BI79: 0 | BS79: =BS21 -> 9.3 | BT79: 0 | BU79: 0 | BV79: 0 | BW79: 0 | BX79: 0 | CE79: 10.5 | CF79: 0 | CG79: 0 | CH79: 0 | CI79: 0 | CJ79: 0 | CN79: 11.4 | CO79: 0 | CP79: 0 | CQ79: 0 | CR79: 0 | CS79: 0
B80: 0 | C80: 0 | D80: 0 | E80: 0 | F80: 0 | G80: 0 | I80: 0 | J80: 0 | K80: 0 | L80: 0 | M80: 0 | N80: 0 | S80: 0 | T80: 0 | U80: 0 | V80: 0 | W80: 0 | X80: 0 | AB80: 0 | AC80: 0 | AD80: 0 | AE80: 0 | AF80: 0 | AG80: 0 | AK80: 0 | AL80: 0 | AM80: 0 | AN80: 0 | AO80: 0 | AP80: 0 | AU80: 0 | AV80: 0 | AW80: 0 | AX80: 0 | AY80: 0 | AZ80: 0 | BD80: 0 | BE80: 0 | BF80: 0 | BG80: 0 | BH80: 0 | BI80: 0 | BS80: 0 | BT80: 0 | BU80: 0 | BV80: 0 | BW80: 0 | BX80: 0 | CE80: 0 | CF80: 0 | CG80: 0 | CH80: 0 | CI80: 0 | CJ80: 0 | CN80: 0 | CO80: 0 | CP80: 0 | CQ80: 0 | CR80: 0 | CS80: 0
BO84: =BO26 -> 3 | BP84: 0 | BQ84: 0 | BR84: 0 | BS84: 0 | BT84: 0 | BU84: 0 | BV84: 0 | BY84: 3.1 | BZ84: 0 | CA84: 0 | CB84: 0 | CC84: 0 | CD84: 0 | CE84: 0 | CF84: 0
C91: =C33 -> 2.35 | D91: 0 | E91: 0 | F91: 0 | G91: 0 | H91: 0 | J91: 2.42 | K91: 0 | L91: 0 | M91: 0 | N91: 0 | O91: 0 | U91: 2.53 | V91: 0 | W91: 0 | X91: 0 | Y91: 0 | Z91: 0 | AD91: 2.62 | AE91: 0 | AF91: 0 | AG91: 0 | AH91: 0 | AI91: 0 | AM91: 2.71 | AN91: 0 | AO91: 0 | AP91: 0 | AQ91: 0 | AR91: 0 | AW91: 2.81 | AX91: 0 | AY91: 0 | AZ91: 0 | BA91: 0 | BB91: 0 | BF91: 2.9 | BG91: 0 | BH91: 0 | BI91: 0 | BJ91: 0 | BK91: 0 | BU91: =BU33 -> 3.05 | BV91: 0 | BW91: 0 | BX91: 0 | BY91: 0 | BZ91: 0 | CG91: 3.17 | CH91: 0 | CI91: 0 | CJ91: 0 | CK91: 0 | CL91: 0 | CP91: 3.26 | CQ91: 0 | CR91: 0 | CS91: 0 | CT91: 0 | CU91: 0
C92: 0 | D92: 0 | E92: 0 | F92: 0 | G92: 0 | H92: 0 | J92: 0 | K92: 0 | L92: 0 | M92: 0 | N92: 0 | O92: 0 | U92: 0 | V92: 0 | W92: 0 | X92: 0 | Y92: 0 | Z92: 0 | AD92: 0 | AE92: 0 | AF92: 0 | AG92: 0 | AH92: 0 | AI92: 0 | AM92: 0 | AN92: 0 | AO92: 0 | AP92: 0 | AQ92: 0 | AR92: 0 | AW92: 0 | AX92: 0 | AY92: 0 | AZ92: 0 | BA92: 0 | BB92: 0 | BF92: 0 | BG92: 0 | BH92: 0 | BI92: 0 | BJ92: 0 | BK92: 0 | BU92: 0 | BV92: 0 | BW92: 0 | BX92: 0 | BY92: 0 | BZ92: 0 | CG92: 0 | CH92: 0 | CI92: 0 | CJ92: 0 | CK92: 0 | CL92: 0 | CP92: 0 | CQ92: 0 | CR92: 0 | CS92: 0 | CT92: 0 | CU92: 0
B96: =B38 -> D | AU96: =AU38 -> 7 | AV96: 0 | AW96: 0 | AX96: 0 | AY96: 0 | AZ96: 0 | BA96: 0 | BB96: 0 | BE96: 7.1 | BF96: 0 | BG96: 0 | BH96: 0 | BI96: 0 | BJ96: 0 | BK96: 0 | BL96: 0
D103: =D45 -> 6.56 | E103: 0 | F103: 0 | G103: 0 | H103: 0 | I103: 0 | K103: 6.63 | L103: 0 | M103: 0 | N103: 0 | O103: 0 | P103: 0 | V103: 6.74 | W103: 0 | X103: 0 | Y103: 0 | Z103: 0 | AA103: 0 | AE103: 6.83 | AF103: 0 | AG103: 0 | AH103: 0 | AI103: 0 | AJ103: 0 | AN103: 6.92 | AO103: 0 | AP103: 0 | AQ103: 0 | AR103: 0 | AS103: 0 | AX103: 7.02 | AY103: 0 | AZ103: 0 | BA103: 0 | BB103: 0 | BC103: 0 | BG103: 7.11 | BH103: 0 | BI103: 0 | BJ103: 0 | BK103: 0 | BL103: 0 | BV103: =BV45 -> 7.26 | BW103: 0 | BX103: 0 | BY103: 0 | BZ103: 0 | CA103: 0 | CH103: 7.38 | CI103: 0 | CJ103: 0 | CK103: 0 | CL103: 0 | CM103: 0 | CS103: =CS45 -> 7.49 | CT103: 0 | CU103: 0 | CV103: 0 | CW103: 0 | CX103: 0
D104: 0 | E104: 0 | F104: 0 | G104: 0 | H104: 0 | I104: 0 | K104: 0 | L104: 0 | M104: 0 | N104: 0 | O104: 0 | P104: 0 | V104: 0 | W104: 0 | X104: 0 | Y104: 0 | Z104: 0 | AA104: 0 | AE104: 0 | AF104: 0 | AG104: 0 | AH104: 0 | AI104: 0 | AJ104: 0 | AN104: 0 | AO104: 0 | AP104: 0 | AQ104: 0 | AR104: 0 | AS104: 0 | AX104: 0 | AY104: 0 | AZ104: 0 | BA104: 0 | BB104: 0 | BC104: 0 | BG104: 0 | BH104: 0 | BI104: 0 | BJ104: 0 | BK104: 0 | BL104: 0 | BV104: 0 | BW104: 0 | BX104: 0 | BY104: 0 | BZ104: 0 | CA104: 0 | CH104: 0 | CI104: 0 | CJ104: 0 | CK104: 0 | CL104: 0 | CM104: 0 | CS104: 0 | CT104: 0 | CU104: 0 | CV104: 0 | CW104: 0 | CX104: 0
Q108: =Q50 -> 15 | R108: 0 | S108: 0 | T108: 0 | U108: 0 | V108: 0 | W108: 0 | X108: 0 | AA108: 15.01 | AB108: 0 | AC108: 0 | AD108: 0 | AE108: 0 | AF108: 0 | AG108: 0 | AH108: 0
J115: =J57 -> 14.992 | K115: 0 | L115: 0 | M115: 0 | N115: 0 | O115: 0 | Q115: 14.999 | R115: 0 | S115: 0 | T115: 0 | U115: 0 | V115: 0 | AB115: 15.01 | AC115: 0 | AD115: 0 | AE115: 0 | AF115: 0 | AG115: 0 | AK115: 15.019 | AL115: 0 | AM115: 0 | AN115: 0 | AO115: 0 | AP115: 0 | AT115: 15.028 | AU115: 0 | AV115: 0 | AW115: 0 | AX115: 0 | AY115: 0 | BD115: 15.038 | BE115: 0 | BF115: 0 | BG115: 0 | BH115: 0 | BI115: 0 | BM115: =BM57 -> 15.047 | BN115: 0 | BO115: 0 | BP115: 0 | BQ115: 0 | BR115: 0 | BT115: 15.054 | BU115: 0 | BV115: 0 | BW115: 0 | BX115: 0 | BY115: 0 | CF115: 15.066 | CG115: 0 | CH115: 0 | CI115: 0 | CJ115: 0 | CK115: 0 | CQ115: 15.077 | CR115: 0 | CS115: 0 | CT115: 0 | CU115: 0 | CV115: 0
J116: 0 | K116: 0 | L116: 0 | M116: 0 | N116: 0 | O116: 0 | Q116: 0 | R116: 0 | S116: 0 | T116: 0 | U116: 0 | V116: 0 | AB116: 0 | AC116: 0 | AD116: 0 | AE116: 0 | AF116: 0 | AG116: 0 | AK116: 0 | AL116: 0 | AM116: 0 | AN116: 0 | AO116: 0 | AP116: 0 | AT116: 0 | AU116: 0 | AV116: 0 | AW116: 0 | AX116: 0 | AY116: 0 | BD116: 0 | BE116: 0 | BF116: 0 | BG116: 0 | BH116: 0 | BI116: 0 | BM116: 0 | BN116: 0 | BO116: 0 | BP116: 0 | BQ116: 0 | BR116: 0 | BT116: 0 | BU116: 0 | BV116: 0 | BW116: 0 | BX116: 0 | BY116: 0 | CF116: 0 | CG116: 0 | CH116: 0 | CI116: 0 | CJ116: 0 | CK116: 0 | CQ116: 0 | CR116: 0 | CS116: 0 | CT116: 0 | CU116: 0 | CV116: 0

Sheet Droites
A1: =$CZ$13 -> A. Complète la droite 514. | CY1: Nombre de fractions à placer : | DA1: 10 | DB1: 10 | DC1: Dénominateur
A2: 0 | J2: 0.01 | T2: 0.02 | AD2: 0.03 | AN2: 0.04 | AX2: 0.05 | BH2: 0.06 | BR2: 0.07 | CB2: 0.08 | CL2: 0.09 | DB2: 0 | DC2: Nombre du départ
I9: ↑ | T9: ↑ | AA9: ↑ | AJ9: ↑ | AO9: ↑ | AU9: ↑ | AZ9: ↑ | BE9: ↑ | CB9: ↑ | CM9: ↑
I10: 9 | T10: 20 | AA10: 27 | AJ10: 36 | AO10: 41 | AU10: 47 | AZ10: 52 | BE10: 57 | CB10: 80 | CM10: 91 | DB10: La droite sera graduée en millièmes.
I11: 1000 | T11: 1000 | AA11: 1000 | AJ11: 1000 | AO11: 1000 | AU11: 1000 | AZ11: 1000 | BE11: 1000 | CB11: 1000 | CM11: 1000
I12: 0.009 | T12: 0.02 | AA12: 0.027 | AJ12: 0.036 | AO12: 0.041 | AU12: 0.047 | AZ12: 0.052 | BE12: 0.057 | CB12: 0.08 | CM12: 0.091
CZ13: =CONCATENATE("A. Complète la droite ", RANDBETWEEN(100,999),".") -> A. Complète la droite 514.
A17: =$CZ$13 -> A. Complète la droite 514.
A18: 0 | J18: 0.01 | T18: 0.02 | AD18: 0.03 | AN18: 0.04 | AX18: 0.05 | BH18: 0.06 | BR18: 0.07 | CB18: 0.08 | CL18: 0.09
I25: ↑ | T25: ↑ | AA25: ↑ | AJ25: ↑ | AO25: ↑ | AU25: ↑ | AZ25: ↑ | BE25: ↑ | CB25: ↑ | CM25: ↑
I26: 9 | T26: 20 | AA26: 27 | AJ26: 36 | AO26: 41 | AU26: 47 | AZ26: 52 | BE26: 57 | CB26: 80 | CM26: 91
I27: 1000 | T27: 1000 | AA27: 1000 | AJ27: 1000 | AO27: 1000 | AU27: 1000 | AZ27: 1000 | BE27: 1000 | CB27: 1000 | CM27: 1000
I28: 0.009 | T28: 0.02 | AA28: 0.027 | AJ28: 0.036 | AO28: 0.041 | AU28: 0.047 | AZ28: 0.052 | BE28: 0.057 | CB28: 0.08 | CM28: 0.091
A33: =$CZ$13 -> A. Complète la droite 514.
A34: 0 | J34: 0.01 | T34: 0.02 | AD34: 0.03 | AN34: 0.04 | AX34: 0.05 | BH34: 0.06 | BR34: 0.07 | CB34: 0.08 | CL34: 0.09
I41: ↑ | T41: ↑ | AA41: ↑ | AJ41: ↑ | AO41: ↑ | AU41: ↑ | AZ41: ↑ | BE41: ↑ | CB41: ↑ | CM41: ↑
I42: 9 | T42: 20 | AA42: 27 | AJ42: 36 | AO42: 41 | AU42: 47 | AZ42: 52 | BE42: 57 | CB42: 80 | CM42: 91
I43: 1000 | T43: 1000 | AA43: 1000 | AJ43: 1000 | AO43: 1000 | AU43: 1000 | AZ43: 1000 | BE43: 1000 | CB43: 1000 | CM43: 1000
I44: 0.009 | T44: 0.02 | AA44: 0.027 | AJ44: 0.036 | AO44: 0.041 | AU44: 0.047 | AZ44: 0.052 | BE44: 0.057 | CB44: 0.08 | CM44: 0.091
A49: =$CZ$13 -> A. Complète la droite 514.
A50: 0 | J50: 0.01 | T50: 0.02 | AD50: 0.03 | AN50: 0.04 | AX50: 0.05 | BH50: 0.06 | BR50: 0.07 | CB50: 0.08 | CL50: 0.09
I57: ↑ | T57: ↑ | AA57: ↑ | AJ57: ↑ | AO57: ↑ | AU57: ↑ | AZ57: ↑ | BE57: ↑ | CB57: ↑ | CM57: ↑
I58: 9 | T58: 20 | AA58: 27 | AJ58: 36 | AO58: 41 | AU58: 47 | AZ58: 52 | BE58: 57 | CB58: 80 | CM58: 91
I59: 1000 | T59: 1000 | AA59: 1000 | AJ59: 1000 | AO59: 1000 | AU59: 1000 | AZ59: 1000 | BE59: 1000 | CB59: 1000 | CM59: 1000
I60: 0.009 | T60: 0.02 | AA60: 0.027 | AJ60: 0.036 | AO60: 0.041 | AU60: 0.047 | AZ60: 0.052 | BE60: 0.057 | CB60: 0.08 | CM60: 0.091
A66: =$CZ$13 -> A. Complète la droite 514.
A67: 0 | J67: 0.01 | T67: 0.02 | AD67: 0.03 | AN67: 0.04 | AX67: 0.05 | BH67: 0.06 | BR67: 0.07 | CB67: 0.08 | CL67: 0.09
I74: ↑ | T74: ↑ | AA74: ↑ | AJ74: ↑ | AO74: ↑ | AU74: ↑ | AZ74: ↑ | BE74: ↑ | CB74: ↑ | CM74: ↑
I75: 9 | T75: 20 | AA75: 27 | AJ75: 36 | AO75: 41 | AU75: 47 | AZ75: 52 | BE75: 57 | CB75: 80 | CM75: 91
I76: 1000 | T76: 1000 | AA76: 1000 | AJ76: 1000 | AO76: 1000 | AU76: 1000 | AZ76: 1000 | BE76: 1000 | CB76: 1000 | CM76: 1000
I77: 0.009 | T77: 0.02 | AA77: 0.027 | AJ77: 0.036 | AO77: 0.041 | AU77: 0.047 | AZ77: 0.052 | BE77: 0.057 | CB77: 0.08 | CM77: 0.091
A82: =$CZ$13 -> A. Complète la droite 514.
A83: 0 | J83: 0.01 | T83: 0.02 | AD83: 0.03 | AN83: 0.04 | AX83: 0.05 | BH83: 0.06 | BR83: 0.07 | CB83: 0.08 | CL83: 0.09
I90: ↑ | T90: ↑ | AA90: ↑ | AJ90: ↑ | AO90: ↑ | AU90: ↑ | AZ90: ↑ | BE90: ↑ | CB90: ↑ | CM90: ↑
I91: 9 | T91: 20 | AA91: 27 | AJ91: 36 | AO91: 41 | AU91: 47 | AZ91: 52 | BE91: 57 | CB91: 80 | CM91: 91
I92: 1000 | T92: 1000 | AA92: 1000 | AJ92: 1000 | AO92: 1000 | AU92: 1000 | AZ92: 1000 | BE92: 1000 | CB92: 1000 | CM92: 1000
I93: 0.009 | T93: 0.02 | AA93: 0.027 | AJ93: 0.036 | AO93: 0.041 | AU93: 0.047 | AZ93: 0.052 | BE93: 0.057 | CB93: 0.08 | CM93: 0.091
A98: =$CZ$13 -> A. Complète la droite 514.
A99: 0 | J99: 0.01 | T99: 0.02 | AD99: 0.03 | AN99: 0.04 | AX99: 0.05 | BH99: 0.06 | BR99: 0.07 | CB99: 0.08 | CL99: 0.09
I106: ↑ | T106: ↑ | AA106: ↑ | AJ106: ↑ | AO106: ↑ | AU106: ↑ | AZ106: ↑ | BE106: ↑ | CB106: ↑ | CM106: ↑
I107: 9 | T107: 20 | AA107: 27 | AJ107: 36 | AO107: 41 | AU107: 47 | AZ107: 52 | BE107: 57 | CB107: 80 | CM107: 91
I108: 1000 | T108: 1000 | AA108: 1000 | AJ108: 1000 | AO108: 1000 | AU108: 1000 | AZ108: 1000 | BE108: 1000 | CB108: 1000 | CM108: 1000
I109: 0.009 | T109: 0.02 | AA109: 0.027 | AJ109: 0.036 | AO109: 0.041 | AU109: 0.047 | AZ109: 0.052 | BE109: 0.057 | CB109: 0.08 | CM109: 0.091
A114: =$CZ$13 -> A. Complète la droite 514.
A115: 0 | J115: 0.01 | T115: 0.02 | AD115: 0.03 | AN115: 0.04 | AX115: 0.05 | BH115: 0.06 | BR115: 0.07 | CB115: 0.08 | CL115: 0.09
I122: ↑ | T122: ↑ | AA122: ↑ | AJ122: ↑ | AO122: ↑ | AU122: ↑ | AZ122: ↑ | BE122: ↑ | CB122: ↑ | CM122: ↑
I123: 9 | T123: 20 | AA123: 27 | AJ123: 36 | AO123: 41 | AU123: 47 | AZ123: 52 | BE123: 57 | CB123: 80 | CM123: 91
I124: 1000 | T124: 1000 | AA124: 1000 | AJ124: 1000 | AO124: 1000 | AU124: 1000 | AZ124: 1000 | BE124: 1000 | CB124: 1000 | CM124: 1000
I125: 0.009 | T125: 0.02 | AA125: 0.027 | AJ125: 0.036 | AO125: 0.041 | AU125: 0.047 | AZ125: 0.052 | BE125: 0.057 | CB125: 0.08 | CM125: 0.091

Sheet 4DroitesDiff
A1: A | CY1: Nombre de fractions : | DA1: 5 | DB1: 10 | DC1: Dénominateur
A2: 0 | J2: 0.01 | T2: 0.02 | AD2: 0.03 | AN2: 0.04 | AX2: 0.05 | BH2: 0.06 | BR2: 0.07 | CB2: 0.08 | CL2: 0.09 | DB2: 0 | DC2: Nombre du départ
AF9: ↑ | AQ9: ↑ | BB9: ↑ | BL9: ↑ | BV9: ↑
AF10: 32 | AQ10: 43 | BB10: 54 | BL10: 64 | BV10: 74 | DB10: La droite sera graduée en dixièmes.
AF11: 1000 | AQ11: 1000 | BB11: 1000 | BL11: 1000 | BV11: 1000
AF12: 0.032 | AQ12: 0.043 | BB12: 0.054 | BL12: 0.064 | BV12: 0.074
A17: B | CY17: Nombre de fractions : | DA17: 5 | DB17: 10 | DC17: Dénominateur
A18: 0 | J18: 0.01 | T18: 0.02 | AD18: 0.03 | AN18: 0.04 | AX18: 0.05 | BH18: 0.06 | BR18: 0.07 | CB18: 0.08 | CL18: 0.09 | DB18: 0 | DC18: Nombre du départ
C25: ↑ | Q25: ↑ | BG25: ↑ | BP25: ↑ | CI25: ↑
C26: 3 | Q26: 17 | BG26: 59 | BP26: 68 | CI26: 87 | DB26: La droite sera graduée en millièmes.
C27: 1000 | Q27: 1000 | BG27: 1000 | BP27: 1000 | CI27: 1000
C28: 0.003 | Q28: 0.017 | BG28: 0.059 | BP28: 0.068 | CI28: 0.087
A33: C | CY33: Nombre de fractions : | DA33: 5 | DB33: 10 | DC33: Dénominateur
A34: 0 | J34: 0.01 | T34: 0.02 | AD34: 0.03 | AN34: 0.04 | AX34: 0.05 | BH34: 0.06 | BR34: 0.07 | CB34: 0.08 | CL34: 0.09 | DB34: 0 | DC34: Nombre du départ
DB35: 30026
U41: ↑ | AA41: ↑ | AK41: ↑ | AY41: ↑ | CT41: ↑
U42: 21 | AA42: 27 | AK42: 37 | AY42: 51 | CT42: 98 | DB42: La droite sera graduée en millièmes.
U43: 1000 | AA43: 1000 | AK43: 1000 | AY43: 1000 | CT43: 1000
U44: 0.021 | AA44: 0.027 | AK44: 0.037 | AY44: 0.051 | CT44: 0.098
A49: D | CY49: Nombre de fractions : | DA49: 5 | DB49: 10 | DC49: Dénominateur
A50: 0 | J50: 0.01 | T50: 0.02 | AD50: 0.03 | AN50: 0.04 | AX50: 0.05 | BH50: 0.06 | BR50: 0.07 | CB50: 0.08 | CL50: 0.09 | DB50: 0 | DC50: Nombre du départ
G57: ↑ | R57: ↑ | AS57: ↑ | CH57: ↑ | CN57: ↑
G58: 7 | R58: 18 | AS58: 45 | CH58: 86 | CN58: 92 | DB58: La droite sera graduée en millièmes.
G59: 1000 | R59: 1000 | AS59: 1000 | CH59: 1000 | CN59: 1000
G60: 0.007 | R60: 0.018 | AS60: 0.045 | CH60: 0.086 | CN60: 0.092
A66: A
A67: 0 | J67: 0.01 | T67: 0.02 | AD67: 0.03 | AN67: 0.04 | AX67: 0.05 | BH67: 0.06 | BR67: 0.07 | CB67: 0.08 | CL67: 0.09
AF74: ↑ | AQ74: ↑ | BB74: ↑ | BL74: ↑ | BV74: ↑
AF75: 32 | AQ75: 43 | BB75: 54 | BL75: 64 | BV75: 74
AF76: 1000 | AQ76: 1000 | BB76: 1000 | BL76: 1000 | BV76: 1000
AF77: 0.032 | AQ77: 0.043 | BB77: 0.054 | BL77: 0.064 | BV77: 0.074
A82: B
A83: 0 | J83: 0.01 | T83: 0.02 | AD83: 0.03 | AN83: 0.04 | AX83: 0.05 | BH83: 0.06 | BR83: 0.07 | CB83: 0.08 | CL83: 0.09
C90: ↑ | Q90: ↑ | BG90: ↑ | BP90: ↑ | CI90: ↑
C91: 3 | Q91: 17 | BG91: 59 | BP91: 68 | CI91: 87
C92: 1000 | Q92: 1000 | BG92: 1000 | BP92: 1000 | CI92: 1000
C93: 0.003 | Q93: 0.017 | BG93: 0.059 | BP93: 0.068 | CI93: 0.087
A98: C
A99: 0 | J99: 0.01 | T99: 0.02 | AD99: 0.03 | AN99: 0.04 | AX99: 0.05 | BH99: 0.06 | BR99: 0.07 | CB99: 0.08 | CL99: 0.09
U106: ↑ | AA106: ↑ | AK106: ↑ | AY106: ↑ | CT106: ↑
U107: 21 | AA107: 27 | AK107: 37 | AY107: 51 | CT107: 98
U108: 1000 | AA108: 1000 | AK108: 1000 | AY108: 1000 | CT108: 1000
U109: 0.021 | AA109: 0.027 | AK109: 0.037 | AY109: 0.051 | CT109: 0.098
A114: D
A115: 0 | J115: 0.01 | T115: 0.02 | AD115: 0.03 | AN115: 0.04 | AX115: 0.05 | BH115: 0.06 | BR115: 0.07 | CB115: 0.08 | CL115: 0.09
G122: ↑ | R122: ↑ | AS122: ↑ | CH122: ↑ | CN122: ↑
G123: 7 | R123: 18 | AS123: 45 | CH123: 86 | CN123: 92
G124: 1000 | R124: 1000 | AS124: 1000 | CH124: 1000 | CN124: 1000
G125: 0.007 | R125: 0.018 | AS125: 0.045 | CH125: 0.086 | CN125: 0.092
